bitfinex/quotes_SOLUSD_20250829
["timestamp","ask_amount","ask_price","bid_price","bid_amount"]
[1756471493689,0.06,211.39,211.37,28.95929292]
[1756471493860,0.06,211.39,211.38,28.95929292]
[1756471494063,0.06,211.39,211.38,4.73081653]
[1756471494278,0.06,211.39,211.38,34.36010945]
[1756471494669,0.06,211.39,211.38,5.40081653]
[1756471494882,0.06,211.39,211.38,34.36010945]
[1756471495489,0.06,211.39,211.38,47.95570346]
[1756471495795,1e-08,211.39,211.38,47.95570346]
[1756471496974,1e-08,211.39,211.38,18.99641054]
[1756471497180,1e-08,211.39,211.38,47.95570346]
[1756471498176,1e-08,211.39,211.38,33.69010945]
[1756471498381,1e-08,211.39,211.38,47.95570346]
[1756471498883,1e-08,211.39,211.37,28.95929292]
[1756471499260,1e-08,211.39,211.38,28.95929292]
[1756471499678,1e-08,211.39,211.37,28.95929292]
[1756471499987,1e-08,211.39,211.37,54.95929292]
[1756471500190,1e-08,211.39,211.37,26.0]
[1756471500405,0.67,211.38,211.29,0.67]
[1756471500568,28.95929292,211.36,211.26,0.69]
[1756471500767,28.95929292,211.36,211.24,16.56883165]
[1756471500768,0.71,211.35,211.27,28.95929292]
[1756471500967,26.00000001,211.39,211.33,28.95929292]
[1756471501189,54.95929293,211.39,211.32,28.95929292]
[1756471501488,28.95929292,211.36,211.27,26.0]
[1756471501684,29.66929292,211.35,211.28,28.95929292]
[1756471501875,28.95929292,211.34,211.27,28.95929292]
[1756471502077,28.95929292,211.31,211.25,28.95929292]
[1756471502396,28.95929292,211.27,211.2,28.95929292]
[1756471502594,0.71,211.28,211.2,28.95929292]
[1756471502800,28.95929292,211.23,211.16,0.03]
[1756471502969,28.95929292,211.23,211.16,28.98929292]
[1756471503172,28.95929292,211.19,211.16,0.03]
[1756471503374,0.71,211.22,211.16,0.03]
[1756471503580,28.95929292,211.19,211.16,0.03]
[1756471503876,50.32,211.24,211.16,0.03]
[1756471504083,0.71,211.23,211.17,33.69470517]
[1756471504285,0.71,211.23,211.2,28.95929292]
[1756471504612,50.32,211.24,211.16,0.03]
[1756471504887,28.95929292,211.2,211.16,0.03]
[1756471505090,0.71,211.22,211.16,0.03]
[1756471505278,28.95929292,211.21,211.16,4.76574324]
[1756471505465,0.71,211.2,211.16,4.76574324]
[1756471505672,81.05403143,211.24,211.16,0.03]
[1756471505673,29.66929292,211.19,211.16,0.03]
[1756471505870,28.95929292,211.18,211.16,0.03]
[1756471506073,29.66929292,211.23,211.16,28.98929292]
[1756471506294,0.71,211.23,211.16,0.03]
[1756471506472,28.95929292,211.22,211.16,0.03]
[1756471506667,28.95929292,211.17,211.16,0.03]
[1756471506867,79.90929292,211.17,211.16,0.03]
[1756471507090,0.71,211.17,211.16,0.03]
[1756471507396,79.19929292,211.19,211.16,0.03]
[1756471507694,29.66929292,211.17,211.16,0.03]
[1756471508071,34.40481406,211.17,211.16,0.03]
[1756471508673,26.0,211.14,211.13,0.03]
[1756471508879,54.95929292,211.14,211.13,0.03]
[1756471509090,55.66929292,211.14,211.13,0.03]
[1756471509292,69.26488693,211.14,211.13,0.03]
[1756471509776,76.89,211.14,211.13,0.03]
[1756471509982,105.84929292,211.14,211.13,0.03]
[1756471510367,110.58548691,211.14,211.13,0.03]
[1756471510699,76.89,211.14,211.13,0.03]
[1756471510873,105.82929292,211.14,211.13,0.03]
[1756471511275,79.82929292,211.14,211.13,0.03]
[1756471512495,29.66929292,211.14,211.13,0.03]
[1756471512671,79.78929292,211.14,211.13,0.03]
[1756471512993,50.83,211.14,211.13,0.03]
[1756471513206,26.0,211.17,211.13,0.03]
[1756471513378,79.05929292,211.16,211.13,0.03]
[1756471513702,0.71,211.21,211.13,0.03]
[1756471513911,34.17020524,211.32,211.13,0.03]
[1756471513912,50.1,211.2,211.15,28.95929292]
[1756471514198,13.59559401,211.26,211.19,28.95929292]
[1756471514199,28.95929292,211.26,211.19,28.95929292]
[1756471514401,50.1,211.25,211.19,28.95929292]
[1756471514697,50.1,211.25,211.18,0.69]
[1756471514897,50.1,211.25,211.2,28.95929292]
[1756471515100,28.95929292,211.21,211.14,4.73619399]
[1756471515395,79.01929292,211.2,211.13,4.76640126]
[1756471515573,50.06,211.2,211.14,28.95929292]
[1756471515892,28.95929292,211.17,211.13,0.03]
[1756471516199,28.95929292,211.14,211.13,0.03]
[1756471516376,33.69548691,211.14,211.13,0.03]
[1756471516576,34.40548691,211.14,211.13,0.03]
[1756471516995,5.44619399,211.14,211.13,0.03]
[1756471517196,34.40548691,211.14,211.13,0.03]
[1756471517580,5.44619399,211.14,211.13,0.03]
[1756471517788,84.42548691,211.14,211.13,0.03]
[1756471518094,98.02108092,211.14,211.13,0.03]
[1756471518491,126.98037384,211.14,211.13,0.03]
[1756471519008,39.59559401,211.12,211.11,0.03]
[1756471519187,68.55488693,211.12,211.11,0.03]
[1756471519386,69.26488693,211.12,211.11,0.03]
[1756471519780,55.66929292,211.12,211.11,0.03]
[1756471520013,4.73596259,211.16,211.11,0.03]
[1756471520187,28.95929292,211.12,211.11,0.03]
[1756471520384,49.96,211.14,211.11,0.03]
[1756471520879,28.95929292,211.13,211.11,0.03]
[1756471521079,49.96,211.14,211.11,0.72]
[1756471521284,13.59559401,211.22,211.11,0.72]
[1756471521285,28.95929292,211.17,211.11,0.03]
[1756471521479,49.92,211.16,211.12,0.69]
[1756471521684,0.71,211.21,211.11,28.98929292]
[1756471521882,0.71,211.2,211.11,0.03]
[1756471522106,28.95929292,211.15,211.11,0.03]
[1756471522311,49.9,211.15,211.11,0.72]
[1756471522718,49.9,211.15,211.12,0.69]
[1756471523000,26.0,211.19,211.13,0.69]
[1756471523200,0.71,211.29,211.17,28.95929292]
[1756471523407,0.71,211.32,211.19,28.95929292]
[1756471523576,28.95929292,211.3,211.22,28.95929292]
[1756471523784,28.95929292,211.3,211.23,28.95929292]
[1756471524001,0.2,211.38,211.28,28.95929292]
[1756471524178,49.86,211.37,211.28,28.95929292]
[1756471524499,28.95929292,211.3,211.24,26.0]
[1756471524703,28.95929292,211.3,211.23,28.95929292]
[1756471525011,28.95929292,211.25,211.19,26.0]
[1756471525308,28.95929292,211.23,211.16,28.95929292]
[1756471525506,28.95929292,211.25,211.18,0.69]
[1756471525809,78.77929292,211.25,211.18,0.69]
[1756471525981,49.82,211.25,211.18,29.64929292]
[1756471526182,49.82,211.25,211.19,28.95929292]
[1756471526387,49.82,211.25,211.2,4.73484848]
[1756471526595,49.82,211.25,211.2,5.42484848]
[1756471526788,49.82,211.25,211.21,0.69]
[1756471527118,54.55373271,211.25,211.21,0.69]
[1756471527307,28.95929292,211.24,211.17,28.95929292]
[1756471527605,28.95929292,211.24,211.16,54.95929292]
[1756471527808,54.55373271,211.25,211.16,54.95929292]
[1756471527809,28.95929292,211.22,211.16,26.0]
[1756471528107,28.95929292,211.23,211.16,54.95929292]
[1756471528291,28.95929292,211.22,211.16,26.0]
[1756471528495,28.95929292,211.19,211.11,26.72]
[1756471528686,28.95929292,211.18,211.12,4.73664266]
[1756471529101,28.95929292,211.17,211.11,5.45685752]
[1756471529294,28.95929292,211.18,211.11,5.45685752]
[1756471529501,28.95929292,211.16,211.11,5.45685752]
[1756471529702,28.95929292,211.16,211.11,0.03]
[1756471530009,0.71,211.19,211.11,4.76681631]
[1756471530190,28.95929292,211.16,211.11,0.03]
[1756471530391,29.66929292,211.15,211.11,0.03]
[1756471530608,28.95929292,211.15,211.11,0.03]
[1756471530918,4.73350373,211.26,211.14,28.95929292]
[1756471531093,4.73350373,211.26,211.12,0.67]
[1756471531094,49.68,211.25,211.18,28.95929292]
[1756471531410,28.95929292,211.22,211.17,0.67]
[1756471531711,0.06,211.2,211.13,0.67]
[1756471532010,0.06,211.2,211.14,28.95929292]
[1756471532519,28.95929292,211.19,211.13,4.73622632]
[1756471532817,28.95929292,211.15,211.11,0.03]
[1756471532987,28.95929292,211.13,211.11,0.03]
[1756471533188,28.95929292,211.12,211.11,0.03]
[1756471533392,29.61929292,211.12,211.11,0.03]
[1756471533609,0.66,211.12,211.11,0.03]
[1756471533795,55.61929292,211.12,211.11,0.03]
[1756471534411,5.39602902,211.15,211.11,0.03]
[1756471534615,29.61929292,211.12,211.11,0.03]
[1756471535014,55.61929292,211.12,211.11,0.03]
[1756471535207,29.61929292,211.12,211.11,0.03]
[1756471536309,49.56,211.12,211.11,0.03]
[1756471536507,78.51929292,211.12,211.07,0.03]
[1756471536711,78.51929292,211.12,211.04,0.58821369]
[1756471536912,28.95929292,211.08,211.02,0.03]
[1756471537497,28.95929292,211.09,211.02,28.98929292]
[1756471537699,0.66,211.17,211.08,28.95929292]
[1756471538017,28.95929292,211.14,211.07,28.95929292]
[1756471538519,28.95929292,211.14,211.08,4.73754026]
[1756471538702,49.5,211.17,211.11,28.95929292]
[1756471539105,49.5,211.17,211.08,16.58139093]
[1756471539304,28.95929292,211.14,211.07,33.69704006]
[1756471539515,28.95929292,211.15,211.08,28.95929292]
[1756471539702,28.95929292,211.15,211.07,4.73774714]
[1756471539905,28.95929292,211.15,211.07,33.69704006]
[1756471540208,50.16,211.17,211.08,28.95929292]
[1756471540520,28.95929292,211.16,211.08,28.95929292]
[1756471540697,28.95929292,211.15,211.09,4.73731583]
[1756471540898,28.95929292,211.12,211.06,26.0]
[1756471541620,0.66,211.16,211.06,26.0]
[1756471541621,28.95929292,211.13,211.06,28.95929292]
[1756471541822,0.06,211.2,211.12,28.95929292]
[1756471542142,49.42,211.19,211.15,28.95929292]
[1756471542310,49.42,211.19,211.13,28.95929292]
[1756471542508,0.06,211.2,211.12,26.0]
[1756471542700,29.01929292,211.2,211.12,28.95929292]
[1756471543233,0.06,211.2,211.14,28.95929292]
[1756471543401,0.06,211.2,211.17,28.95929292]
[1756471543725,0.06,211.2,211.16,28.95929292]
[1756471544221,4.60957367,211.36,211.22,26.0]
[1756471544399,28.95929292,211.36,211.29,28.95929292]
[1756471544606,28.95929292,211.37,211.3,28.95929292]
[1756471544803,28.95929292,211.36,211.27,30.73306446]
[1756471545027,28.95929292,211.34,211.27,59.69235738]
[1756471545229,0.2,211.38,211.31,28.95929292]
[1756471545410,26.2,211.38,211.32,28.95929292]
[1756471545606,0.2,211.38,211.34,28.95929292]
[1756471546223,0.2,211.38,211.36,28.95929292]
[1756471546928,0.2,211.38,211.37,28.95929292]
[1756471547231,0.2,211.38,211.37,29.62929292]
[1756471547728,0.2,211.38,211.37,43.22488693]
[1756471548732,0.2,211.38,211.37,34.36033327]
[1756471549030,0.2,211.38,211.37,47.95592728]
[1756471549539,0.2,211.38,211.37,34.36033327]
[1756471550305,0.2,211.38,211.37,28.95929292]
[1756471550914,0.2,211.38,211.36,28.95929292]
[1756471551118,0.2,211.38,211.37,28.95929292]
[1756471551436,0.2,211.38,211.37,40.26559401]
[1756471551814,0.2,211.38,211.37,69.22488693]
[1756471552208,1e-08,211.39,211.38,13.59559401]
[1756471552408,0.06,211.41,211.4,39.59559401]
[1756471552602,0.06,211.41,211.4,68.55488693]
[1756471552802,0.06,211.41,211.4,44.99596297]
[1756471553037,0.06,211.41,211.4,73.28525589]
[1756471553210,0.06,211.41,211.4,44.99596297]
[1756471553409,0.06,211.41,211.35,26.0]
[1756471553629,0.06,211.41,211.4,54.95929292]
[1756471554004,0.06,211.41,211.4,28.95929292]
[1756471554939,0.06,211.41,211.4,34.35966188]
[1756471555425,0.06,211.41,211.4,47.95525589]
[1756471556131,0.06,211.42,211.41,39.59559401]
[1756471556430,0.06,211.42,211.41,69.22488693]
[1756471557027,0.06,211.42,211.41,73.95503214]
[1756471557330,0.06,211.44,211.41,47.95503214]
[1756471557530,0.66,211.56,211.43,68.55488693]
[1756471557830,0.66,211.56,211.42,0.67]
[1756471557831,0.66,211.56,211.53,28.95929292]
[1756471558051,0.2,211.61,211.55,28.95929292]
[1756471558210,0.2,211.61,211.58,28.95929292]
[1756471558534,0.2,211.61,211.54,0.67]
[1756471558535,0.2,211.61,211.57,28.95929292]
[1756471558830,0.2,211.61,211.6,28.95929292]
[1756471559417,0.2,211.61,211.6,33.68519084]
[1756471559616,0.2,211.61,211.6,28.95929292]
[1756471559816,0.2,211.61,211.58,28.95929292]
[1756471560018,0.2,211.61,211.6,28.95929292]
[1756471560424,0.2,211.61,211.57,13.59559401]
[1756471560719,0.2,211.61,211.56,18.32238546]
[1756471560929,0.2,211.61,211.6,47.28078485]
[1756471561126,0.2,211.61,211.6,18.32149193]
[1756471561432,0.2,211.61,211.6,47.28078485]
[1756471561611,0.2,211.61,211.6,18.32149193]
[1756471561918,0.2,211.61,211.6,47.94078485]
[1756471562118,0.06,211.7,211.6,82.07675983]
[1756471562321,0.06,211.7,211.69,28.95929292]
[1756471562720,0.06,211.7,211.69,43.21488693]
[1756471562919,0.06,211.7,211.69,47.93877563]
[1756471563236,0.06,211.72,211.71,39.59559401]
[1756471563430,0.06,211.74,211.72,42.55488693]
[1756471563607,1e-08,211.73,211.72,43.21488693]
[1756471563815,0.06,211.77,211.74,26.0]
[1756471564010,1e-08,211.77,211.75,13.59559401]
[1756471564331,1e-08,211.79,211.78,39.59559401]
[1756471564530,1e-08,211.79,211.78,68.55488693]
[1756471564838,0.2,211.87,211.83,13.59559401]
[1756471565012,0.2,211.87,211.86,33.67939109]
[1756471565509,0.2,211.87,211.84,4.72036285]
[1756471565707,0.2,211.87,211.86,28.95929292]
[1756471566812,0.2,211.87,211.84,4.72036285]
[1756471567013,0.2,211.87,211.86,33.67939109]
[1756471567521,0.2,211.87,211.86,28.95929292]
[1756471567947,0.2,211.87,211.86,42.55488693]
[1756471568438,0.2,211.92,211.88,13.59559401]
[1756471568639,0.2,211.92,211.91,42.55488693]
[1756471569240,0.2,211.92,211.91,47.2738714]
[1756471569837,0.68,212.15,211.95,13.59559401]
[1756471570040,0.68,212.14,212.04,54.95929292]
[1756471570328,0.68,212.18,212.13,28.95929292]
[1756471570549,0.68,212.17,212.1,26.0]
[1756471570750,0.68,212.17,212.16,28.95929292]
[1756471571155,18.56,212.24,212.16,28.95929292]
[1756471571455,18.56,212.24,212.14,30.71369985]
[1756471571456,0.68,212.23,212.14,30.71369985]
[1756471571938,24.22464313,212.39,212.16,26.0]
[1756471571939,4.70854129,212.38,212.16,26.0]
[1756471572162,28.95929292,212.25,212.16,26.0]
[1756471572318,28.95929292,212.25,212.18,28.95929292]
[1756471572319,0.68,212.24,212.18,28.95929292]
[1756471572519,0.68,212.23,212.17,28.95929292]
[1756471572737,0.68,212.22,212.12,26.0]
[1756471572935,0.68,212.22,212.14,26.0]
[1756471573140,34.3516255,212.21,212.15,28.95929292]
[1756471573343,0.68,212.2,212.16,28.95929292]
[1756471573546,0.68,212.19,212.13,28.95929292]
[1756471573744,0.68,212.19,212.14,28.95929292]
[1756471574055,48.52,212.25,212.18,28.95929292]
[1756471574235,0.68,212.23,212.13,26.0]
[1756471574444,0.68,212.23,212.22,28.95929292]
[1756471574641,0.68,212.27,212.22,28.95929292]
[1756471574966,0.68,212.26,212.12,26.0]
[1756471575153,0.68,212.26,212.24,28.95929292]
[1756471575324,0.68,212.26,212.17,26.0]
[1756471575325,0.68,212.26,212.25,28.95929292]
[1756471575524,0.68,212.26,212.17,26.0]
[1756471575525,0.68,212.25,212.17,26.0]
[1756471575762,0.68,212.24,212.18,28.95929292]
[1756471575954,4.71075937,212.28,212.11,13.59559401]
[1756471575955,0.68,212.23,212.19,28.95929292]
[1756471576251,0.68,212.22,212.21,28.95929292]
[1756471576454,0.68,212.22,212.2,28.95929292]
[1756471576664,0.68,212.21,212.14,26.0]
[1756471576833,29.63929292,212.2,212.13,28.95929292]
[1756471577034,29.63929292,212.23,212.1,0.65]
[1756471577330,0.68,212.23,212.2,28.95929292]
[1756471577537,0.68,212.26,212.16,0.65]
[1756471577747,5.39123064,212.26,212.22,28.95929292]
[1756471578054,0.68,212.25,212.21,28.95929292]
[1756471578230,0.68,212.24,212.14,26.0]
[1756471578634,16.48924071,212.26,212.11,28.95929292]
[1756471578635,28.95929292,212.18,212.11,28.95929292]
[1756471578851,0.68,212.17,212.05,13.59559401]
[1756471579039,0.68,212.16,212.1,28.95929292]
[1756471579361,0.68,212.16,212.07,13.59559401]
[1756471579548,0.68,212.16,212.07,39.59559401]
[1756471579853,0.68,212.21,212.15,28.95929292]
[1756471580055,0.68,212.3,212.18,26.0]
[1756471580352,28.95929292,212.25,212.18,28.95929292]
[1756471580551,0.68,212.29,212.23,28.95929292]
[1756471581027,4.71009373,212.31,212.14,14.815978]
[1756471581028,28.95929292,212.26,212.14,14.815978]
[1756471581234,5.3914252,212.25,212.19,28.95929292]
[1756471581539,5.3914252,212.25,212.18,28.95929292]
[1756471581749,5.39009373,212.31,212.24,28.95929292]
[1756471582049,5.39009373,212.31,212.22,26.0]
[1756471582231,28.95929292,212.31,212.22,26.0]
[1756471582432,14.27559401,212.33,212.22,26.0]
[1756471582433,28.95929292,212.28,212.22,28.95929292]
[1756471582747,0.68,212.27,212.21,28.95929292]
[1756471582950,28.95929292,212.26,212.14,4.71365321]
[1756471583144,5.39153023,212.25,212.19,28.95929292]
[1756471583352,34.35005229,212.28,212.17,4.71318847]
[1756471583735,0.68,212.28,212.22,28.95929292]
[1756471583937,0.68,212.33,212.27,28.95929292]
[1756471584156,0.68,212.33,212.28,28.95929292]
[1756471584355,0.68,212.33,212.29,28.95929292]
[1756471584565,4.70888769,212.37,212.31,28.95929292]
[1756471584736,53.62832757,212.39,212.32,28.95929292]
[1756471584937,0.68,212.39,212.33,28.95929292]
[1756471585166,5.38610381,212.49,212.38,28.95929292]
[1756471585473,48.9,212.49,212.43,28.95929292]
[1756471585634,28.95929292,212.44,212.37,28.95929292]
[1756471585840,28.95929292,212.45,212.35,26.0]
[1756471586034,28.95929292,212.45,212.38,28.95929292]
[1756471586567,87.64595409,212.5,212.42,28.95929292]
[1756471586740,0.68,212.49,212.36,26.0]
[1756471587136,4.70787627,212.41,212.31,26.0]
[1756471587366,0.68,212.43,212.37,28.95929292]
[1756471587737,0.68,212.43,212.35,28.95929292]
[1756471587939,28.95929292,212.41,212.34,28.95929292]
[1756471588140,0.68,212.4,212.34,28.95929292]
[1756471588637,0.68,212.44,212.36,28.95929292]
[1756471588853,0.06,212.37,212.34,28.95929292]
[1756471589058,0.06,212.37,212.32,28.95929292]
[1756471589561,0.06,212.37,212.34,28.95929292]
[1756471589754,0.06,212.37,212.28,30.08307646]
[1756471589755,0.06,212.37,212.33,28.95929292]
[1756471589967,28.95929292,212.36,212.29,26.0]
[1756471590143,28.95929292,212.36,212.3,28.95929292]
[1756471590342,0.06,212.37,212.29,26.0]
[1756471590555,0.06,212.37,212.32,28.95929292]
[1756471590761,0.06,212.37,212.35,28.95929292]
[1756471590941,0.06,212.37,212.36,28.95929292]
[1756471591143,0.06,212.4,212.39,26.0]
[1756471591353,0.06,212.4,212.39,54.95929292]
[1756471591538,0.06,212.4,212.39,26.0]
[1756471591740,0.06,212.4,212.39,34.25761252]
[1756471592540,0.06,212.4,212.34,25.95894491]
[1756471592745,0.06,212.4,212.39,68.55488693]
[1756471592940,0.06,212.4,212.39,69.14488693]
[1756471593139,11.75878554,212.61,212.51,28.95929292]
[1756471593448,4.70411139,212.58,212.45,4.70682262]
[1756471593670,28.95929292,212.54,212.44,13.59559401]
[1756471593843,30.70411139,212.58,212.5,28.95929292]
[1756471594041,28.95929292,212.57,212.51,28.95929292]
[1756471594244,28.95929292,212.52,212.44,26.0]
[1756471594562,28.95929292,212.49,212.42,28.95929292]
[1756471594750,26.0,212.53,212.44,28.95929292]
[1756471594948,48.0,212.52,212.46,28.95929292]
[1756471595149,74.66,212.53,212.45,28.95929292]
[1756471595360,74.66,212.53,212.41,26.0]
[1756471595361,52.68477435,212.56,212.5,28.95929292]
[1756471595558,4.70477435,212.56,212.45,0.66]
[1756471595748,4.70477435,212.56,212.51,28.95929292]
[1756471595954,0.66,212.55,212.45,0.66]
[1756471596441,0.66,212.55,212.43,26.0]
[1756471596442,29.61929292,212.55,212.43,26.0]
[1756471596641,0.66,212.54,212.48,28.95929292]
[1756471596856,0.66,212.54,212.49,28.95929292]
[1756471597059,0.66,212.54,212.5,28.95929292]
[1756471597276,5.36521432,212.54,212.45,4.70693762]
[1756471597441,4.70467501,212.56,212.5,28.95929292]
[1756471597646,0.66,212.57,212.46,0.66]
[1756471597866,0.66,212.57,212.45,4.70693762]
[1756471598064,0.66,212.57,212.52,28.95929292]
[1756471598443,0.2,212.59,212.56,28.95929292]
[1756471598666,0.2,212.59,212.58,28.95929292]
[1756471598863,0.2,212.59,212.53,0.66]
[1756471599052,0.2,212.59,212.55,28.95929292]
[1756471599459,0.86,212.59,212.55,28.95929292]
[1756471599666,0.66,212.58,212.52,28.95929292]
[1756471599847,4.90390392,212.59,212.54,28.95929292]
[1756471600071,4.90390392,212.59,212.55,28.95929292]
[1756471600256,0.66,212.58,212.52,28.95929292]
[1756471600580,0.2,212.59,212.56,28.95929292]
[1756471600758,0.2,212.59,212.5,0.66]
[1756471600949,28.95929292,212.58,212.47,31.36647995]
[1756471601143,5.56389256,212.59,212.47,31.36647995]
[1756471601349,34.52318548,212.59,212.53,28.95929292]
[1756471601644,28.95929292,212.58,212.51,28.95929292]
[1756471601870,17.32361785,212.59,212.47,0.66]
[1756471601871,5.56389256,212.59,212.54,28.95929292]
[1756471602298,5.56389256,212.59,212.55,28.95929292]
[1756471602451,0.2,212.59,212.55,28.95929292]
[1756471602774,4.90389709,212.59,212.55,28.95929292]
[1756471603271,0.2,212.59,212.55,28.95929292]
[1756471603568,4.90397717,212.59,212.55,28.95929292]
[1756471603779,4.90397717,212.59,212.46,0.66]
[1756471603780,28.95929292,212.57,212.46,0.66]
[1756471603954,28.95929292,212.51,212.42,0.66]
[1756471604163,28.95929292,212.5,212.43,28.95929292]
[1756471604359,76.75929292,212.51,212.44,28.95929292]
[1756471604683,28.95929292,212.47,212.38,0.66]
[1756471605071,0.66,212.5,212.44,28.95929292]
[1756471605264,47.78,212.54,212.49,28.95929292]
[1756471605446,29.61929292,212.57,212.5,28.95929292]
[1756471605648,0.2,212.59,212.48,0.66]
[1756471605848,47.76,212.58,212.55,28.95929292]
[1756471606172,0.2,212.59,212.55,28.95929292]
[1756471606354,0.2,212.59,212.57,28.95929292]
[1756471606543,0.2,212.59,212.56,28.95929292]
[1756471606745,0.2,212.59,212.52,0.66]
[1756471606746,0.2,212.59,212.57,28.95929292]
[1756471606961,0.66,212.58,212.48,26.66]
[1756471607161,0.2,212.59,212.54,28.95929292]
[1756471607572,0.2,212.59,212.51,26.0]
[1756471607753,0.86,212.59,212.55,28.95929292]
[1756471608376,29.61929292,212.58,212.44,26.66]
[1756471608552,0.66,212.57,212.41,0.66]
[1756471608751,28.95929292,212.53,212.46,28.95929292]
[1756471608955,47.7,212.52,212.46,28.95929292]
[1756471609271,47.7,212.52,212.47,28.95929292]
[1756471609572,47.7,212.52,212.39,0.03]
[1756471609573,4.70588235,212.5,212.45,28.95929292]
[1756471609761,4.70588235,212.5,212.44,28.95929292]
[1756471609959,28.95929292,212.49,212.43,28.95929292]
[1756471610265,28.95929292,212.49,212.42,28.95929292]
[1756471610468,28.95929292,212.47,212.41,28.95929292]
[1756471610671,47.66,212.46,212.41,28.95929292]
[1756471610875,47.66,212.48,212.45,28.95929292]
[1756471611376,47.66,212.48,212.43,28.95929292]
[1756471611577,5.3665468,212.47,212.41,28.95929292]
[1756471611769,28.95929292,212.46,212.4,28.95929292]
[1756471611967,5.3665468,212.47,212.39,28.98929292]
[1756471612190,5.3665468,212.47,212.4,28.95929292]
[1756471612191,28.95929292,212.46,212.4,28.95929292]
[1756471612369,34.32583972,212.47,212.39,0.03]
[1756471612688,28.95929292,212.41,212.39,0.03]
[1756471612887,76.57929292,212.4,212.39,0.03]
[1756471613060,77.23929292,212.4,212.39,0.03]
[1756471613264,48.28,212.4,212.39,0.03]
[1756471613483,47.62,212.4,212.39,0.03]
[1756471613790,28.95929292,212.5,212.39,29.64929292]
[1756471613986,48.26,212.49,212.45,28.95929292]
[1756471614187,0.66,212.55,212.48,28.95929292]
[1756471614373,47.6,212.53,212.51,28.95929292]
[1756471614576,47.6,212.53,212.52,28.95929292]
[1756471615299,47.6,212.53,212.45,0.66]
[1756471615485,47.6,212.53,212.49,28.95929292]
[1756471615670,47.6,212.53,212.47,4.70644112]
[1756471615870,47.6,212.53,212.5,28.95929292]
[1756471616188,52.30523163,212.53,212.49,28.95929292]
[1756471616397,47.6,212.53,212.5,28.95929292]
[1756471616597,29.61929292,212.52,212.4,0.66]
[1756471616899,29.61929292,212.52,212.4,26.66]
[1756471616900,28.95929292,212.51,212.4,26.66]
[1756471617081,0.66,212.5,212.42,28.95929292]
[1756471617270,29.61929292,212.5,212.43,28.95929292]
[1756471617597,26.0,212.57,212.47,28.95929292]
[1756471617598,4.70433269,212.57,212.47,28.95929292]
[1756471617792,0.2,212.59,212.56,28.95929292]
[1756471617970,0.2,212.59,212.58,28.95929292]
[1756471619480,0.2,212.59,212.52,26.0]
[1756471619685,0.2,212.59,212.57,28.95929292]
[1756471619868,0.2,212.59,212.54,4.70486815]
[1756471620067,0.2,212.59,212.57,28.95929292]
[1756471620306,0.2,212.59,212.54,4.70486815]
[1756471620307,0.2,212.59,212.58,28.95929292]
[1756471620811,0.2,212.59,212.58,29.65929292]
[1756471621695,0.06,212.62,212.61,30.70344762]
[1756471621892,0.06,212.62,212.61,59.66274054]
[1756471622083,0.06,212.64,212.63,54.95929292]
[1756471622472,0.06,212.64,212.63,55.65929292]
[1756471622674,47.44,212.76,212.63,55.65929292]
[1756471622900,52.14013571,212.76,212.71,28.95929292]
[1756471623095,0.72,212.75,212.71,28.95929292]
[1756471623305,52.14013571,212.76,212.64,0.7]
[1756471623306,0.72,212.74,212.64,0.7]
[1756471623474,0.72,212.74,212.71,28.95929292]
[1756471623679,0.72,212.74,212.72,28.95929292]
[1756471623883,5.42063388,212.74,212.71,28.95929292]
[1756471624097,0.72,212.73,212.63,26.0]
[1756471624278,0.72,212.73,212.67,28.95929292]